bitfinex-derivatives/quotes_BTCF0:USTF0_20250313
["timestamp","ask_amount","ask_price","bid_price","bid_amount"]
[1741882786790,0.1234927,80991.0,80990.0,0.12367947]
[1741882787086,0.1993927,80991.0,80990.0,0.12367947]
[1741882787582,0.2023927,80991.0,80990.0,0.12367947]
[1741882788886,0.2023927,80991.0,80990.0,0.00018527]
[1741882789081,0.1235171,80975.0,80974.0,0.0752]
[1741882789282,0.1852528,80988.0,80987.0,0.1852443]
[1741882789682,0.2635449,80990.0,80989.0,0.1234957]
[1741882789883,0.1852691,80981.0,80980.0,0.0617543]
[1741882790082,0.1852691,80981.0,80980.0,0.07400402]
[1741882790285,0.1852691,80981.0,80980.0,0.13575922]
[1741882791085,0.1852691,80981.0,80980.0,0.21245922]
[1741882791282,0.1852691,80981.0,80980.0,0.21248284]
[1741882791890,0.1852691,80981.0,80980.0,0.22623162]
[1741882792093,0.00018527,80989.0,80988.0,0.1234973]
[1741882792392,0.12368097,80989.0,80988.0,0.13590031]
[1741882792688,0.27448097,80989.0,80988.0,0.14964909]
[1741882792985,0.27448097,80989.0,80988.0,0.02615179]
[1741882793493,0.27448097,80989.0,80988.0,0.16974076]
[1741882793683,0.27648097,80989.0,80988.0,0.24464076]
[1741882794081,0.27748097,80989.0,80988.0,0.24455609]
[1741882794687,0.27848097,80989.0,80988.0,0.24455609]
[1741882795092,0.20088097,80989.0,80988.0,0.24455609]
[1741882795401,0.00418527,80989.0,80988.0,0.24455609]
[1741882795590,0.00618527,80989.0,80988.0,0.32255609]
[1741882795792,0.12968097,80989.0,80988.0,0.32255609]
[1741882796285,0.00218527,80989.0,80988.0,0.32255609]
[1741882796492,0.00418527,80989.0,80988.0,0.32255609]
[1741882796789,0.00218527,80989.0,80988.0,0.35255609]
[1741882796994,0.00318527,80989.0,80988.0,0.32255609]
[1741882797196,0.00318527,80989.0,80988.0,0.31017533]
[1741882797399,0.00218527,80989.0,80988.0,0.31017533]
[1741882797583,0.00318527,80989.0,80988.0,0.35017533]
[1741882797789,0.18145531,81002.0,81001.0,0.1234774]
[1741882798095,0.30493121,81002.0,81001.0,0.02002925]
[1741882798286,0.30493121,81002.0,81001.0,0.03377803]
[1741882798682,0.30493121,81002.0,81001.0,0.15725543]
[1741882798896,0.26355531,81002.0,81001.0,0.15725645]
[1741882799190,0.38703121,81002.0,81001.0,0.15725645]
[1741882799586,0.2055759,81002.0,81001.0,0.15725645]
[1741882799788,0.2055759,81002.0,81001.0,0.03377905]
[1741882799992,0.2105759,81002.0,81001.0,0.03377905]
[1741882800384,0.22358264,81002.0,81001.0,0.03377905]
[1741882800692,0.1234881,80994.0,80993.0,0.00018527]
[1741882800897,0.1234881,80994.0,80993.0,0.02021591]
[1741882801381,0.02300674,81002.0,80993.0,0.00018527]
[1741882801590,0.0617426,80996.0,80994.0,0.02003177]
[1741882801783,0.1852277,80996.0,80995.0,0.1575]
[1741882801995,0.0617426,80996.0,80995.0,0.3010185]
[1741882802204,0.14148524,81002.0,81001.0,0.1234774]
[1741882802499,0.0617397,81000.0,80996.0,0.0617422]
[1741882802681,0.0617397,81000.0,80993.0,0.00018527]
[1741882802682,0.123482,80998.0,80997.0,0.30101525]
[1741882803593,0.007,81000.0,80997.0,0.30101525]
[1741882803890,0.007,81000.0,80999.0,0.1234805]
[1741882804099,0.21757495,81002.0,81001.0,0.1234774]
[1741882804298,0.1234538,81017.0,81016.0,0.1234546]
[1741882804484,0.49871328,81031.0,81022.0,0.1234454]
[1741882804684,0.01299012,81024.0,81022.0,0.14347293]
[1741882804889,0.37404569,81023.0,81022.0,0.02002753]
[1741882805288,0.37404569,81023.0,81022.0,0.0803]
[1741882805489,0.1234561,81015.0,81008.0,0.0617333]
[1741882805690,0.1234561,81015.0,80990.0,0.0617465]
[1741882805691,0.1234561,81015.0,81013.0,0.1234585]
[1741882805889,0.1234561,81015.0,81014.0,0.07698514]
[1741882806290,0.25060179,81023.0,81014.0,0.07698514]
[1741882806496,0.25060179,81023.0,81022.0,0.1234454]
[1741882806497,0.25560179,81023.0,81022.0,0.1234454]
[1741882806693,0.25860179,81023.0,81022.0,0.1234454]
[1741882807194,0.25560179,81023.0,81022.0,0.31244849]
[1741882807592,0.1284439,81023.0,81022.0,0.18900309]
[1741882808192,0.14632313,81024.0,81014.0,0.00018514]
[1741882808193,0.1234561,81015.0,81014.0,0.00018514]
[1741882808393,0.1244561,81015.0,81014.0,4e-08]
[1741882808697,0.1234851,80996.0,80995.0,0.01263512]
[1741882808896,0.1234851,80996.0,80993.0,0.49407436]
[1741882809202,0.0617425,80996.0,80995.0,0.1234866]
[1741882809701,0.0617425,80996.0,80993.0,0.29458626]
[1741882809702,0.1234881,80994.0,80993.0,0.29458626]
[1741882810096,0.1234881,80994.0,80993.0,0.29658626]
[1741882810298,0.13618779,80994.0,80993.0,0.29658626]
[1741882810803,0.13618779,80994.0,80993.0,0.002]
[1741882811007,0.13918779,80994.0,80993.0,0.002]
[1741882812193,0.061747,80991.0,80988.0,0.061748]
[1741882812398,0.1852413,80990.0,80989.0,0.078]
[1741882812602,0.1852413,80990.0,80989.0,0.2014957]
[1741882812905,0.1852413,80990.0,80989.0,0.078]
[1741882813102,0.1852413,80990.0,80989.0,0.2014957]
[1741882813303,0.0617471,80990.0,80989.0,0.2014957]
[1741882814092,0.27181733,80991.0,80990.0,0.1234942]
[1741882814294,0.14832313,80991.0,80990.0,0.2014942]
[1741882815203,0.18290391,80997.0,80990.0,0.94844475]
[1741882815398,0.04664928,81012.0,81000.0,0.0617392]
[1741882815600,0.00064,81033.0,81022.0,0.1234454]
[1741882815795,0.0617123,81036.0,81022.0,0.4877654]
[1741882816103,0.00979459,81046.0,81033.0,0.1234287]
[1741882816297,0.00979459,81046.0,81033.0,0.3178287]
[1741882816497,0.00915459,81046.0,81033.0,0.3178287]
[1741882816807,0.36532676,81034.0,81033.0,0.01372535]
[1741882817300,0.1234272,81034.0,81033.0,0.01372535]
[1741882817697,0.1234287,81033.0,81032.0,0.0771]
[1741882817913,0.1996287,81033.0,81032.0,0.0771]
[1741882818107,0.1986287,81033.0,81032.0,0.0771]
[1741882818404,0.1224287,81033.0,81032.0,0.0771]
[1741882818608,0.1986287,81033.0,81032.0,0.0771]
[1741882818909,0.2046287,81033.0,81032.0,0.0771]
[1741882819111,0.2092287,81033.0,81032.0,0.2005302]
[1741882819298,0.1344287,81033.0,81032.0,0.2005302]
[1741882819501,0.1344287,81033.0,81032.0,0.0771]
[1741882820201,0.012,81033.0,81032.0,0.2305302]
[1741882820401,0.157,81048.0,81040.0,0.123418]
[1741882820602,0.0617056,81045.0,81040.0,0.123418]
[1741882820904,0.12526853,81041.0,81040.0,0.123418]
[1741882821295,0.123418,81040.0,81039.0,0.1999189]
[1741882821813,0.281518,81040.0,81039.0,0.1999189]
[1741882822504,0.30126883,81040.0,81039.0,0.1999189]
[1741882823412,0.30126883,81040.0,81039.0,0.0765]
[1741882823616,0.1234287,81033.0,81032.0,0.01273312]
[1741882823909,0.1234302,81032.0,81031.0,0.246862]
[1741882824105,0.2048302,81032.0,81031.0,0.246862]
[1741882825109,0.0814,81032.0,81031.0,0.246862]
[1741882825313,0.1635,81032.0,81031.0,0.246862]
[1741882825498,0.2869302,81032.0,81031.0,0.246862]
[1741882826509,0.1635,81032.0,81026.0,0.22366]
[1741882826699,0.1234393,81026.0,81020.0,0.14296]
[1741882826905,0.1234393,81026.0,81023.0,0.0617213]
[1741882827510,0.1234393,81026.0,81025.0,0.12362604]
[1741882827711,0.1234393,81026.0,81025.0,0.00018514]
[1741882827712,0.2790393,81026.0,81025.0,0.00018514]
[1741882827914,0.29162078,81026.0,81025.0,0.12362604]
[1741882828804,0.29362078,81026.0,81025.0,0.12362604]
[1741882830004,0.2810393,81026.0,81025.0,0.12362604]
[1741882830201,0.29355504,81026.0,81025.0,0.00018514]
[1741882831203,0.29355504,81026.0,81025.0,0.12362604]
[1741882831515,0.29355504,81026.0,81025.0,0.00018514]
[1741882832801,0.29355504,81026.0,81025.0,0.12362604]
[1741882833006,0.17011574,81026.0,81025.0,0.12362604]
[1741882833419,0.1254393,81026.0,81025.0,0.12362604]
[1741882833913,0.1254393,81026.0,81025.0,0.00018514]
[1741882834720,0.1254393,81026.0,81025.0,0.12362604]
[1741882835216,0.14268,81037.0,81025.0,0.12362604]
[1741882835217,0.00185203,81041.0,81038.0,0.1234211]
[1741882835423,0.6866,81039.0,81038.0,0.1234211]
[1741882835906,0.00185203,81041.0,81040.0,0.123418]
[1741882836311,0.12526853,81041.0,81040.0,0.123418]
[1741882837107,0.12526853,81041.0,81038.0,0.07457286]
[1741882837312,0.1234195,81039.0,81038.0,0.0617098]
[1741882838021,0.0617147,81033.0,81029.0,0.14228]
[1741882838216,0.1234332,81030.0,81029.0,0.14228]
[1741882838423,0.0617151,81032.0,80999.0,9.661e-05]
[1741882838424,0.0617157,81032.0,81023.0,0.2040412]
[1741882838615,0.0811,81035.0,81028.0,0.0617179]
[1741882838810,0.1851446,81035.0,81034.0,0.1234195]
[1741882839017,0.1234317,81032.0,81031.0,0.1234304]
[1741882839316,0.1234215,81038.0,81037.0,0.1234195]
[1741882840418,0.164,81040.0,81032.0,0.0617148]
[1741882840615,0.1234287,81034.0,81033.0,0.1234278]
[1741882841115,0.2070287,81034.0,81033.0,0.1234278]
[1741882842517,1.2948816,81060.0,81040.0,0.123418]
[1741882842716,0.1234127,81044.0,81040.0,0.123418]
[1741882842917,0.01281487,81046.0,81040.0,0.123418]
[1741882843117,0.12526853,81041.0,81040.0,0.123418]
[1741882843523,0.1234165,81041.0,81040.0,0.123418]
[1741882843723,0.0837,81042.0,81033.0,0.14284]
[1741882843724,0.1851513,81034.0,81033.0,0.0617121]
[1741882843920,0.1851513,81034.0,81033.0,0.10381043]
[1741882844226,0.1851265,81044.0,81043.0,0.1234104]
[1741882844720,0.37119416,81054.0,81043.0,0.1234104]
[1741882844911,0.1234104,81046.0,81045.0,0.1851051]
[1741882845115,0.1234104,81046.0,81045.0,0.19718556]
[1741882845516,0.1234104,81046.0,81045.0,0.21131583]
[1741882845814,0.0837,81051.0,81049.0,0.1234028]
[1741882846022,0.3425988,81054.0,81053.0,0.1233982]
[1741882846421,0.3425988,81054.0,81050.0,0.15513137]
[1741882846621,0.161,81053.0,81051.0,0.13557319]
[1741882846925,0.00072,81068.0,81052.0,0.01217279]
[1741882847126,0.25060179,81066.0,81065.0,0.12338]
[1741882847318,0.25060179,81066.0,81065.0,0.38554895]
[1741882847519,0.25060179,81066.0,81065.0,0.39967922]
[1741882847819,0.25060179,81066.0,81065.0,0.54187922]
[1741882848021,0.37398019,81066.0,81065.0,0.55452874]
[1741882848341,0.01237137,81077.0,81065.0,0.55452874]
[1741882848342,0.0848,81076.0,81067.0,0.1233769]
[1741882848520,0.0616849,81072.0,81071.0,0.1850479]
[1741882848829,0.0616849,81072.0,81071.0,0.19721685]
[1741882849022,0.1850596,81072.0,81071.0,0.21134712]
[1741882849826,0.25060179,81083.0,81082.0,0.1233541]
[1741882850316,0.37395439,81083.0,81082.0,0.1233541]
[1741882850720,0.25060179,81083.0,81082.0,0.2045541]
[1741882851019,0.25060179,81083.0,81082.0,0.24673029]
[1741882851331,0.37395439,81083.0,81082.0,0.23073898]
[1741882851825,0.25060179,81083.0,81082.0,0.28066128]
[1741882852132,0.25060179,81083.0,81082.0,0.26857387]
[1741882852325,0.25060179,81083.0,81082.0,0.2545541]
[1741882852525,0.25060179,81083.0,81082.0,0.26650295]
[1741882852728,0.0616703,81091.0,81088.0,0.123345]
[1741882853030,0.18301991,81094.0,81093.0,0.1233374]
[1741882853427,0.18301991,81094.0,81093.0,0.2738374]
[1741882853627,0.30635571,81094.0,81093.0,0.2038374]
[1741882854530,0.30635571,81094.0,81093.0,0.0805]
[1741882855125,0.18301991,81094.0,81093.0,0.2038374]
[1741882855332,0.18301991,81094.0,81093.0,0.2338374]
[1741882855741,0.30635571,81094.0,81093.0,0.2338374]
[1741882855921,0.18301991,81094.0,81093.0,0.2338374]
[1741882856231,0.18301991,81094.0,81093.0,0.24663223]
[1741882856626,0.30635571,81094.0,81093.0,0.24663223]
[1741882857324,0.30635571,81094.0,81093.0,0.0805]
[1741882857631,0.30635571,81094.0,81093.0,0.2038374]
[1741882858232,0.1233358,81094.0,81093.0,0.2038374]
[1741882858432,0.1233526,81083.0,81081.0,0.00018502]
[1741882859237,0.2654615,81092.0,81091.0,0.1233404]
[1741882859435,0.123351,81086.0,81085.0,0.123345]
[1741882859730,0.123346,81088.0,81087.0,0.1233434]
[1741882859936,0.123346,81088.0,81087.0,0.2060434]
[1741882860336,0.123346,81088.0,81087.0,0.0827]
[1741882860528,0.1233495,81085.0,81084.0,0.204251]
[1741882860835,0.0616717,81089.0,81088.0,0.123345]
[1741882861235,0.1233465,81087.0,81086.0,0.0616733]
[1741882862331,0.1233465,81087.0,81086.0,0.0916733]
[1741882862531,0.0616652,81098.0,81097.0,0.0616649]
[1741882862729,0.2028282,81099.0,81098.0,0.1233298]
[1741882862946,0.2028282,81099.0,81098.0,0.2042298]
[1741882863942,0.08769,81100.0,81099.0,0.1233282]
[1741882864148,0.1599,81110.0,81109.0,0.123313]
[1741882864455,0.0793,81110.0,81109.0,0.123313]
[1741882864647,0.2026115,81110.0,81109.0,0.123313]
[1741882864953,0.0806,81117.0,81109.0,0.123313]
[1741882864954,0.0616464,81123.0,81117.0,0.1233009]
[1741882865157,0.0126272,81126.0,81117.0,0.15602793]
[1741882865345,0.1232891,81125.0,81124.0,0.1232887]
[1741882865551,0.2831891,81125.0,81124.0,0.1232887]
[1741882865747,0.2831892,81125.0,81124.0,0.1232902]
[1741882866053,0.2831892,81125.0,81124.0,0.2797902]
[1741882866445,0.0793,81125.0,81124.0,0.2797902]
[1741882866641,0.23258195,81129.0,81128.0,0.1232841]
[1741882866842,0.1232872,81126.0,81125.0,0.0616441]
[1741882867048,0.10929935,81129.0,81125.0,0.2849441]
[1741882867250,0.13128771,81139.0,81138.0,0.123269]
[1741882867449,0.0823,81152.0,81150.0,0.1232507]
[1741882867650,0.25060179,81156.0,81150.0,0.2653707]
[1741882867953,0.0616219,81155.0,81150.0,0.30212]
[1741882868255,0.1232484,81153.0,81152.0,0.1232462]
[1741882868444,0.1232484,81153.0,81152.0,0.1732462]
[1741882868648,0.25060179,81156.0,81155.0,0.1232431]
[1741882868848,0.25060179,81156.0,81155.0,0.3632431]
[1741882869059,0.0616098,81171.0,81161.0,0.123234]
[1741882869267,0.67924905,81162.0,81161.0,0.415314]
[1741882869553,0.80248155,81162.0,81161.0,0.14208]
[1741882869752,0.123234,81161.0,81160.0,0.30628]
[1741882869957,0.200234,81161.0,81160.0,0.30628]
[1741882870254,0.278734,81161.0,81160.0,0.30628]
[1741882870761,0.0616096,81171.0,81160.0,0.47628]
[1741882870958,0.1555,81175.0,81174.0,0.1232143]
[1741882871157,0.1555,81175.0,81160.0,0.40437517]
[1741882871360,0.123234,81161.0,81160.0,0.23588]
[1741882871550,0.123234,81161.0,81160.0,0.22588]
[1741882871955,0.123234,81161.0,81160.0,0.0838]
[1741882872155,0.1232386,81158.0,81157.0,0.00018491]
[1741882872350,0.0616183,81160.0,81144.0,0.01356792]
[1741882872351,0.1232583,81145.0,81144.0,0.01356792]
[1741882872655,0.1232583,81145.0,81132.0,0.14404868]
[1741882872656,0.1232765,81133.0,81132.0,0.14404868]
[1741882872962,0.6161436,81165.0,81132.0,0.00184868]
[1741882872963,0.1637,81144.0,81132.0,0.00184868]
[1741882873260,0.1637,81144.0,81140.0,0.1232629]
[1741882873261,0.0616307,81143.0,81140.0,0.1232629]
[1741882873462,0.1848936,81143.0,81142.0,0.1232629]
[1741882873654,0.2660936,81143.0,81142.0,0.1232629]
[1741882875263,0.1232735,81135.0,81134.0,0.184912]
[1741882875465,0.0616358,81137.0,81133.0,0.0815]
[1741882875654,0.1232765,81133.0,81132.0,0.12512408]
[1741882876258,0.005,81196.0,81132.0,0.00184868]
[1741882876466,0.184901,81142.0,81141.0,0.1232614]
[1741882876862,0.184911,81137.0,81136.0,0.1848976]
[1741882877162,0.061636,81137.0,81136.0,0.2465314]
[1741882877358,0.061636,81137.0,81136.0,0.3311314]
[1741882877561,0.1232644,81143.0,81142.0,0.1232598]
[1741882877861,0.2034644,81143.0,81142.0,0.1848906]
[1741882878858,0.1232705,81137.0,81136.0,0.0846]
[1741882879058,0.1232705,81137.0,81136.0,0.207872]
[1741882879869,0.1232664,81142.0,81141.0,0.0616302]
[1741882880469,0.1232601,81144.0,81143.0,0.1232598]
[1741882880867,0.2018601,81144.0,81143.0,0.1232598]
[1741882881466,0.2018601,81144.0,81136.0,0.0616354]
[1741882881467,0.1849116,81137.0,81136.0,0.0616354]
[1741882881778,0.1232705,81137.0,81136.0,0.01190526]
[1741882882072,0.1849139,81135.0,81134.0,0.1232748]
[1741882882269,0.1849139,81135.0,81134.0,0.1351824]
[1741882882569,0.1387374,81135.0,81134.0,0.1232748]
[1741882882873,0.1387374,81135.0,81134.0,6e-08]
[1741882882874,0.35835745,81135.0,81134.0,6e-08]
[1741882883170,0.86911851,81135.0,81118.0,0.11021246]
[1741882883377,0.1233069,81113.0,81112.0,0.36935611]
[1741882883668,0.2653869,81113.0,81112.0,0.36935611]
[1741882883873,0.2653869,81113.0,81112.0,0.49266461]
[1741882884074,0.0616358,81137.0,81113.0,0.1233069]
[1741882884263,0.0001849,81121.0,81120.0,0.1232963]
[1741882884660,0.0001849,81121.0,81117.0,0.0616502]
[1741882884871,0.0001849,81121.0,81120.0,0.1232963]
[1741882885371,0.0001849,81121.0,81120.0,0.1532963]
[1741882885568,0.0001849,81121.0,81120.0,0.23603674]
[1741882885768,0.0616331,81140.0,81137.0,0.1232705]
[1741882885964,0.00184979,81145.0,81137.0,0.1232705]
[1741882886269,0.0616317,81142.0,81137.0,0.1232705]
[1741882886472,0.12342083,81138.0,81137.0,0.1232705]
[1741882886774,0.1232705,81137.0,81136.0,0.1232705]
[1741882887177,0.00015183,81138.0,81136.0,0.1232705]
[1741882887368,0.00015183,81138.0,81137.0,0.1232705]
[1741882887570,0.00015183,81138.0,81137.0,0.2042705]
[1741882887971,0.00015183,81138.0,81137.0,0.1242705]
[1741882888675,0.00015183,81138.0,81137.0,0.1942705]
[1741882888876,0.00015183,81138.0,81137.0,0.1962705]
[1741882889274,0.00015183,81138.0,81137.0,0.2766705]
[1741882889669,0.00015183,81138.0,81137.0,0.2066705]
[1741882889877,0.12342083,81138.0,81137.0,0.003]
[1741882890076,0.12342083,81138.0,81137.0,0.1262705]
[1741882890382,0.13567402,81138.0,81137.0,0.003]
[1741882890771,0.21607402,81138.0,81137.0,0.003]
[1741882890976,0.21607402,81138.0,81137.0,0.002]
[1741882891171,0.21607402,81138.0,81137.0,0.1252705]
[1741882891371,0.21607402,81138.0,81137.0,0.002]
[1741882891684,0.21607402,81138.0,81137.0,0.001]
[1741882892180,0.21607402,81138.0,81137.0,0.1242705]
[1741882892370,0.21607402,81138.0,81137.0,0.001]
[1741882892572,0.1232765,81133.0,81132.0,0.2010763]
[1741882893874,0.00015183,81138.0,81135.0,0.061636]
[1741882894180,0.00015183,81138.0,81137.0,0.1232705]
[1741882894371,0.1361741,81138.0,81137.0,0.1232705]
[1741882894577,0.12342083,81138.0,81137.0,0.1232705]
[1741882895577,0.12342083,81138.0,81137.0,0.2025705]
[1741882895978,0.00015183,81138.0,81137.0,0.2025705]
[1741882896380,0.12342083,81138.0,81137.0,0.2025705]
[1741882896581,0.12342083,81138.0,81137.0,0.0793]
[1741882897587,0.12342083,81138.0,81137.0,0.2025705]
[1741882897781,0.12342083,81138.0,81137.0,0.2824705]
[1741882898291,0.12342083,81138.0,81137.0,0.1592]
[1741882898673,0.1232811,81130.0,81129.0,0.0001849]
[1741882899480,0.2877811,81130.0,81129.0,0.0001849]
[1741882900591,0.2877811,81130.0,81129.0,0.1234675]
[1741882900782,0.2877811,81130.0,81129.0,0.0001849]
[1741882902192,0.1233054,81114.0,81092.0,0.00068]
[1741882902381,0.1233054,81114.0,81113.0,0.33680371]
[1741882902687,0.1233145,81108.0,81097.0,0.0844]
[1741882902990,0.17505214,81108.0,81097.0,0.0844]
[1741882903189,0.17505214,81108.0,81094.0,0.0768]
[1741882903386,0.1203313,81097.0,81094.0,0.0768]
[1741882903587,0.1203313,81097.0,81094.0,0.0769849]
[1741882903994,0.1326187,81097.0,81094.0,0.0769849]
[1741882904197,0.2923187,81097.0,81096.0,0.12518227]
[1741882904386,0.2923187,81097.0,81096.0,0.00184947]
[1741882905491,0.2923187,81097.0,81094.0,0.0769849]
[1741882905686,0.1233343,81095.0,81094.0,0.0769849]
[1741882906986,0.1273343,81095.0,81094.0,0.0769849]
[1741882907387,0.1233526,81083.0,81082.0,0.28]
[1741882907592,0.1233526,81083.0,81082.0,0.4033541]
[1741882908390,0.1850263,81085.0,81084.0,0.123351]
[1741882909199,0.123351,81084.0,81083.0,0.0841]
[1741882909496,0.17316692,81084.0,81074.0,0.00951201]
[1741882909794,0.17316692,81084.0,81045.0,0.29801679]
[1741882909795,0.0616891,81067.0,81066.0,0.1233771]
[1741882910396,0.123383,81063.0,81062.0,0.2066809]
[1741882910597,0.123383,81063.0,81062.0,0.0833]
[1741882910894,0.123383,81063.0,81062.0,0.2066845]
[1741882911298,0.123383,81063.0,81062.0,0.0833]
[1741882911894,0.123383,81063.0,81062.0,0.0843]
[1741882912401,0.123383,81063.0,81062.0,0.2086845]
[1741882912997,0.6166473,81099.0,81070.0,0.1233723]
[1741882913198,0.0833,81074.0,81070.0,0.1233723]
[1741882913399,0.01289972,81071.0,81069.0,0.0826]
[1741882913595,0.2050723,81070.0,81069.0,0.0826]
[1741882913903,0.2883723,81070.0,81069.0,0.0826]
[1741882914105,0.2883723,81070.0,81062.0,0.002]
[1741882914106,0.165,81070.0,81062.0,0.002]
[1741882914400,0.1850736,81065.0,81064.0,0.1233809]
[1741882914904,0.3500736,81065.0,81064.0,0.1233809]
[1741882915707,0.1233815,81064.0,81063.0,0.0826]
[1741882916203,0.1233815,81064.0,81063.0,0.205983]
[1741882916401,0.2060815,81064.0,81063.0,0.205983]
[1741882916603,0.2902815,81064.0,81063.0,0.205983]
[1741882916807,0.2892815,81064.0,81063.0,0.205983]
[1741882917001,0.2892815,81064.0,81063.0,0.0826]
[1741882917202,0.1233891,81059.0,81058.0,0.00013025]
[1741882917393,0.1669,81064.0,81054.0,0.12358172]
[1741882917394,0.1233952,81055.0,81054.0,0.12358172]
[1741882918009,0.15222172,81518.0,81063.0,0.001]
[1741882918205,0.2654615,81065.0,81064.0,0.1233815]
[1741882918406,0.2654615,81065.0,81064.0,0.2068815]
[1741882918602,0.12347305,81065.0,81064.0,0.2068815]
[1741882918811,0.13578024,81065.0,81064.0,0.2068815]
[1741882919103,0.13578024,81065.0,81064.0,0.0835]
[1741882919307,0.21548024,81065.0,81064.0,0.2068815]
[1741882919702,0.13578024,81065.0,81064.0,0.2068815]
[1741882920204,0.13578024,81065.0,81064.0,0.0835]
[1741882920409,0.13578024,81065.0,81054.0,0.00018502]
[1741882920410,0.1233815,81064.0,81063.0,0.001]
[1741882920610,0.1233921,81057.0,81056.0,0.0835]
[1741882920802,0.12352235,81057.0,81056.0,0.0835]
[1741882921105,0.12352235,81057.0,81056.0,0.2068937]
[1741882921106,0.00013025,81057.0,81056.0,0.2068937]
[1741882921303,0.00013025,81057.0,81056.0,0.2881937]
[1741882921505,0.01230719,81065.0,81063.0,0.00186975]
[1741882921696,0.1850809,81064.0,81063.0,0.00186975]
[1741882921896,0.1850809,81064.0,81063.0,0.12525275]
[1741882922404,0.1233787,81069.0,81068.0,0.1233723]
[1741882922708,0.1233815,81065.0,81064.0,0.1233807]
[1741882922911,0.1233815,81065.0,81064.0,0.2046807]
[1741882923301,0.2004815,81065.0,81064.0,0.2046807]
[1741882923707,0.1233815,81065.0,81064.0,0.2046807]
[1741882923998,0.0616828,81075.0,81066.0,0.1233754]
[1741882924201,0.06187112,81071.0,81070.0,0.1233723]
[1741882924402,0.07444685,81071.0,81070.0,0.1233723]
[1741882924608,0.1233723,81070.0,81069.0,0.1233723]
[1741882924808,0.00018502,81071.0,81069.0,0.1533723]
[1741882925011,0.00185109,81086.0,81085.0,0.1233495]
[1741882925310,0.00076,81089.0,81088.0,0.123345]
[1741882925507,0.1233397,81092.0,81090.0,0.1233419]
[1741882925711,0.00920131,81098.0,81078.0,0.0847]
[1741882925712,0.15915315,81091.0,81078.0,0.0847]
[1741882925900,0.0616756,81086.0,81085.0,0.0616728]
[1741882926098,0.14642648,81091.0,81085.0,0.03]
[1741882926302,0.0616731,81089.0,81086.0,0.1233419]
[1741882926506,0.1233465,81087.0,81086.0,0.1433419]
[1741882927120,0.1233495,81085.0,81084.0,0.0616751]
[1741882927518,0.0616777,81082.0,81079.0,0.14212]
[1741882927718,0.1233587,81079.0,81078.0,0.0847]
[1741882928027,0.1233617,81077.0,81069.0,0.14212]
[1741882928224,0.1233617,81077.0,81076.0,0.12354822]
[1741882928524,0.003,81085.0,81084.0,0.123351]
[1741882928728,0.003,81085.0,81084.0,0.193351]
[1741882929115,0.00018502,81093.0,81092.0,0.1233389]
[1741882929529,0.00018502,81093.0,81092.0,0.1833389]
[1741882929914,0.00018502,81093.0,81092.0,0.1433389]
[1741882930319,0.00018502,81093.0,81092.0,0.1833389]
[1741882930623,0.00018502,81093.0,81092.0,0.1233389]
[1741882930827,0.12352242,81093.0,81092.0,0.2033389]
[1741882931014,0.12352242,81093.0,81086.0,0.0616736]
[1741882931015,0.1263495,81085.0,81084.0,0.002]
[1741882931220,0.003,81085.0,81084.0,0.375351]
[1741882931426,0.1263495,81085.0,81084.0,0.375351]
[1741882931618,0.1233495,81085.0,81084.0,0.192]
[1741882931813,0.1223495,81085.0,81084.0,0.19]
[1741882932019,0.0788,81086.0,81083.0,0.077]
[1741882932215,0.0616694,81092.0,81076.0,0.00018502]
[1741882932216,0.1233617,81077.0,81076.0,0.00018502]
[1741882932622,0.1233617,81077.0,81076.0,0.12354822]
[1741882933025,0.13599852,81077.0,81076.0,0.12354822]
[1741882933422,0.13599852,81077.0,81076.0,0.00018502]
[1741882933825,0.21909852,81077.0,81076.0,0.00018502]
[1741882934123,0.0616771,81082.0,81081.0,0.1233541]
[1741882934527,0.01264813,81083.0,81081.0,0.1533541]
[1741882934732,0.01264813,81083.0,81082.0,0.1233541]
[1741882935029,0.1243503,81085.0,81084.0,0.123351]
[1741882935235,0.1233488,81086.0,81085.0,0.061674]
[1741882935731,0.1233488,81086.0,81085.0,0.146574]
[1741882936121,0.14642648,81087.0,81085.0,0.176574]
[1741882936321,8e-08,81087.0,81086.0,0.123348]
[1741882936523,0.21873784,81100.0,81099.0,0.1233282]
[1741882936724,6e-08,81107.0,81106.0,0.1233176]
[1741882936925,6e-08,81107.0,81106.0,0.5133176]
[1741882937232,0.0846,81128.0,81106.0,0.39]
[1741882937534,0.26515608,81115.0,81114.0,0.1233054]
[1741882937720,0.20350398,81115.0,81114.0,0.2633054]
[1741882938118,0.20350398,81115.0,81114.0,0.4731054]
[1741882938321,0.00018502,81119.0,81118.0,0.1232993]
[1741882938530,0.00018502,81119.0,81118.0,0.3632993]
[1741882939527,0.00018502,81119.0,81118.0,0.4443993]
[1741882939830,0.12348282,81119.0,81118.0,0.2043993]
[1741882940028,0.12348282,81119.0,81118.0,0.0811]
[1741882940235,0.12348282,81119.0,81118.0,0.2043993]
[1741882940634,0.21008282,81119.0,81118.0,0.2043993]
[1741882940835,0.21008282,81119.0,81118.0,0.0811]
[1741882941040,0.08678502,81119.0,81102.0,0.14226502]
[1741882941227,0.3317097,81118.0,81117.0,0.1232993]
[1741882941636,0.1233009,81117.0,81116.0,0.0794]
[1741882941833,0.1233009,81117.0,81116.0,0.2027024]
[1741882942033,0.12548552,81119.0,81118.0,0.1232993]
[1741882942536,0.12548552,81119.0,81116.0,0.1410505]
[1741882942537,0.1233009,81117.0,81116.0,0.0794]
[1741882942937,0.1233009,81117.0,81116.0,0.2027024]
[1741882943140,0.2023009,81117.0,81116.0,0.2868024]
[1741882943340,0.2023009,81117.0,81116.0,0.1635]
[1741882943544,0.21483245,81117.0,81116.0,0.1635]
[1741882944038,0.2023009,81117.0,81116.0,0.2868024]
[1741882944243,0.00218502,81119.0,81117.0,0.1233009]
[1741882944426,0.1849369,81126.0,81125.0,0.0616431]
[1741882944936,0.1232902,81124.0,81123.0,0.4273717]
[1741882945130,0.14936343,81124.0,81123.0,0.4273717]
[1741882945329,0.02607323,81124.0,81123.0,0.4273717]
[1741882945535,0.02607323,81124.0,81123.0,0.4773717]
[1741882946245,0.14936343,81124.0,81123.0,0.4273717]
[1741882946436,0.15036343,81124.0,81123.0,0.4273717]
[1741882947035,0.02707323,81124.0,81123.0,0.4373717]
[1741882947231,0.14082333,81132.0,81123.0,0.4373717]
[1741882947232,0.00018363,81132.0,81131.0,0.1232796]
[1741882947538,0.00018363,81132.0,81125.0,0.061644]
[1741882947539,0.1232811,81130.0,81129.0,0.2878796]
[1741882947733,0.1232811,81130.0,81129.0,0.3278796]
[1741882948540,0.1232811,81130.0,81129.0,0.1646]
[1741882948847,0.1232902,81124.0,81123.0,0.1234751]
[1741882949036,0.1232902,81124.0,81123.0,0.2467661]
[1741882949638,0.1232902,81124.0,81123.0,0.0001849]